[Event "*** SCC Grand Prix: Titled Tuesday Blitz"]
[Site "Chess.com"]
[Date "2020.07.14"]
[Round "2"]
[White "Yana_pro"]
[Black "timator"]
[Result "0-1"]
[WhiteElo "2226"]
[BlackElo "2602"]
[TimeControl "180+1"]
[EndTime "10:19:24 PDT"]
[Termination "timator won by checkmate"]

1. e4 {[%clk 0:03:00.9]} 1... e5 {[%clk 0:02:58.5]} 2. Nf3 {[%clk 0:03:00.2]}
2... Nc6 {[%clk 0:02:58.6]} 3. d4 {[%clk 0:02:59.4]} 3... exd4 {[%clk
0:02:58.4]} 4. Bc4 {[%clk 0:02:59.5]} 4... Be7 {[%clk 0:02:54.6]} 5. c3 {[%clk
0:02:58.9]} 5... Nf6 {[%clk 0:02:52.7]} 6. e5 {[%clk 0:02:57.7]} 6... Ne4 {[%clk
0:02:52.9]} 7. Bd5 {[%clk 0:02:40.2]} 7... Nc5 {[%clk 0:02:48.2]} 8. cxd4 {[%clk
0:02:07.6]} 8... Ne6 {[%clk 0:02:47.9]} 9. O-O {[%clk 0:02:01.5]} 9... O-O
{[%clk 0:02:47.5]} 10. Nc3 {[%clk 0:02:01.7]} 10... d6 {[%clk 0:02:47.1]} 11.
Be4 {[%clk 0:01:36.4]} 11... Nb8 {[%clk 0:02:15.9]} 12. Qc2 {[%clk 0:01:21.4]}
12... h6 {[%clk 0:02:11.7]} 13. Rd1 {[%clk 0:01:18.7]} 13... dxe5 {[%clk
0:02:01.1]} 14. dxe5 {[%clk 0:01:17.2]} 14... Qe8 {[%clk 0:02:01.1]} 15. Nd5
{[%clk 0:01:08.4]} 15... c6 {[%clk 0:02:00.8]} 16. Nxe7+ {[%clk 0:01:05.2]}
16... Qxe7 {[%clk 0:02:01.7]} 17. b3 {[%clk 0:00:51.3]} 17... Na6 {[%clk
0:01:39.2]} 18. a4 {[%clk 0:00:43.8]} 18... Nb4 {[%clk 0:01:35.4]} 19. Qc3
{[%clk 0:00:42.9]} 19... a5 {[%clk 0:01:35.3]} 20. Ba3 {[%clk 0:00:41.8]} 20...
Qc5 {[%clk 0:01:25.3]} 21. Qe1 {[%clk 0:00:35.5]} 21... Qe7 {[%clk 0:01:18.6]}
22. Rd6 {[%clk 0:00:32.6]} 22... Nc5 {[%clk 0:01:03.4]} 23. Bxb4 {[%clk
0:00:29]} 23... axb4 {[%clk 0:01:04.3]} 24. Qxb4 {[%clk 0:00:29.3]} 24... Nxe4
{[%clk 0:01:05.2]} 25. Qxe4 {[%clk 0:00:28]} 25... Be6 {[%clk 0:01:05.8]} 26.
Qe3 {[%clk 0:00:21.9]} 26... Rfd8 {[%clk 0:01:00.2]} 27. Rad1 {[%clk 0:00:22.1]}
27... Bd5 {[%clk 0:01:00.3]} 28. Nd4 {[%clk 0:00:19.3]} 28... Rxd6 {[%clk
0:00:56.8]} 29. exd6 {[%clk 0:00:20.2]} 29... Qxe3 {[%clk 0:00:43.4]} 30. fxe3
{[%clk 0:00:19.7]} 30... Rd8 {[%clk 0:00:44]} 31. Kf2 {[%clk 0:00:17.5]} 31...
g6 {[%clk 0:00:41.6]} 32. Nf3 {[%clk 0:00:16.3]} 32... Bxb3 {[%clk 0:00:37.2]}
33. Rb1 {[%clk 0:00:15.2]} 33... Bxa4 {[%clk 0:00:35.6]} 34. Rxb7 {[%clk
0:00:14.9]} 34... Rxd6 {[%clk 0:00:35.9]} 35. Rb8+ {[%clk 0:00:15.3]} 35... Kg7
{[%clk 0:00:35.5]} 36. Ne5 {[%clk 0:00:14.9]} 36... Re6 {[%clk 0:00:34.8]} 37.
Nd3 {[%clk 0:00:14]} 37... Bb5 {[%clk 0:00:34.3]} 38. Nc5 {[%clk 0:00:13.4]}
38... Re5 {[%clk 0:00:34.7]} 39. Nd7 {[%clk 0:00:13.3]} 39... Rf5+ {[%clk
0:00:34.4]} 40. Kg3 {[%clk 0:00:11.8]} 40... Bf1 {[%clk 0:00:31.6]} 41. h4
{[%clk 0:00:11.4]} 41... Bb5 {[%clk 0:00:24.4]} 42. Rc8 {[%clk 0:00:09.8]} 42...
Rd5 {[%clk 0:00:23.4]} 43. Rc7 {[%clk 0:00:09.5]} 43... Rd6 {[%clk 0:00:15.7]}
44. Ne5 {[%clk 0:00:08.5]} 44... Rf6 {[%clk 0:00:15.9]} 45. Kh2 {[%clk 0:00:08]}
45... h5 {[%clk 0:00:15.4]} 46. g3 {[%clk 0:00:08.1]} 46... Rf5 {[%clk
0:00:14.6]} 47. Nd7 {[%clk 0:00:07.2]} 47... Rf3 {[%clk 0:00:13.8]} 48. Ne5
{[%clk 0:00:06.2]} 48... Rf5 {[%clk 0:00:11.8]} 49. Nd7 {[%clk 0:00:05.7]} 49...
g5 {[%clk 0:00:12.1]} 50. hxg5 {[%clk 0:00:05.4]} 50... Rxg5 {[%clk 0:00:13]}
51. Kg2 {[%clk 0:00:05.6]} 51... Kg6 {[%clk 0:00:12.8]} 52. Kf2 {[%clk
0:00:05.9]} 52... f6 {[%clk 0:00:13.1]} 53. Nf8+ {[%clk 0:00:05.6]} 53... Kf5
{[%clk 0:00:13.1]} 54. Rf7 {[%clk 0:00:04.2]} 54... Bc4 {[%clk 0:00:12.2]} 55.
e4+ {[%clk 0:00:04.2]} 55... Kxe4 {[%clk 0:00:11.6]} 56. Rxf6 {[%clk 0:00:04.3]}
56... Rf5+ {[%clk 0:00:11.6]} 57. Rxf5 {[%clk 0:00:02.4]} 57... Kxf5 {[%clk
0:00:12.5]} 58. Nh7 {[%clk 0:00:03]} 58... Be6 {[%clk 0:00:09.5]} 59. Nf8 {[%clk
0:00:03.9]} 59... Bc8 {[%clk 0:00:09.7]} 60. Ke3 {[%clk 0:00:02.9]} 60... Kf6
{[%clk 0:00:10.1]} 61. Kd4 {[%clk 0:00:03.8]} 61... Kg7 {[%clk 0:00:10.5]} 62.
Ne6+ {[%clk 0:00:03.3]} 62... Bxe6 {[%clk 0:00:10.3]} 63. Kc5 {[%clk 0:00:04.2]}
63... Bd5 {[%clk 0:00:10.9]} 64. Kd6 {[%clk 0:00:04.9]} 64... Kf6 {[%clk
0:00:11.8]} 65. Kc5 {[%clk 0:00:05.8]} 65... Kg5 {[%clk 0:00:12.3]} 66. Kd6
{[%clk 0:00:06.7]} 66... Kg4 {[%clk 0:00:13.2]} 67. Kc5 {[%clk 0:00:07.5]} 67...
Kxg3 {[%clk 0:00:14.1]} 68. Kd4 {[%clk 0:00:08.4]} 68... h4 {[%clk 0:00:15]} 69.
Kc5 {[%clk 0:00:09.3]} 69... h3 {[%clk 0:00:15.9]} 70. Kd6 {[%clk 0:00:08.7]}
70... h2 {[%clk 0:00:16.8]} 71. Kc7 {[%clk 0:00:08.9]} 71... h1=Q {[%clk
0:00:17.7]} 72. Kb8 {[%clk 0:00:09.8]} 72... Qd1 {[%clk 0:00:17.9]} 73. Ka7
{[%clk 0:00:10.7]} 73... c5 {[%clk 0:00:18.8]} 74. Kb6 {[%clk 0:00:10.5]} 74...
Bh1 {[%clk 0:00:19.7]} 75. Ka5 {[%clk 0:00:11.4]} 75... c4 {[%clk 0:00:19.9]}
76. Kb4 {[%clk 0:00:12.3]} 76... Qb3+ {[%clk 0:00:20]} 77. Ka5 {[%clk
0:00:11.5]} 77... c3 {[%clk 0:00:20.3]} 78. Ka6 {[%clk 0:00:12]} 78... Bc6
{[%clk 0:00:19.5]} 79. Ka5 {[%clk 0:00:12.9]} 79... Qb5# {[%clk 0:00:19.7]} 0-1

[Event "*** SCC Grand Prix: Titled Tuesday Blitz"]
[Site "Chess.com"]
[Date "2020.07.14"]
[Round "2"]
[White "WinstonSilvakov"]
[Black "El_ultimo_Pablo"]
[Result "0-1"]
[WhiteElo "2118"]
[BlackElo "2403"]
[TimeControl "180+1"]
[EndTime "10:19:31 PDT"]
[Termination "El_ultimo_Pablo won on time"]

1. d4 {[%clk 0:03:00.9]} 1... Nf6 {[%clk 0:02:59.7]} 2. e3 {[%clk 0:03:00.7]}
2... g6 {[%clk 0:02:59.7]} 3. Bd3 {[%clk 0:03:00.4]} 3... Bg7 {[%clk 0:02:59.9]}
4. h4 {[%clk 0:03:01.3]} 4... h5 {[%clk 0:02:59.3]} 5. c4 {[%clk 0:02:59.4]}
5... d6 {[%clk 0:02:59.3]} 6. Nc3 {[%clk 0:02:58.9]} 6... c5 {[%clk 0:02:59.2]}
7. d5 {[%clk 0:02:55.9]} 7... O-O {[%clk 0:02:57.7]} 8. Nf3 {[%clk 0:02:55.5]}
8... e6 {[%clk 0:02:57.2]} 9. Qc2 {[%clk 0:02:48.9]} 9... exd5 {[%clk
0:02:54.4]} 10. cxd5 {[%clk 0:02:48.5]} 10... Bg4 {[%clk 0:02:32.4]} 11. Nh2
{[%clk 0:02:43.6]} 11... Na6 {[%clk 0:02:24.2]} 12. f3 {[%clk 0:02:35.9]} 12...
Bd7 {[%clk 0:02:20.9]} 13. a3 {[%clk 0:02:34.8]} 13... Nc7 {[%clk 0:02:20.2]}
14. e4 {[%clk 0:02:33.8]} 14... Re8 {[%clk 0:02:20.4]} 15. O-O {[%clk
0:02:25.8]} 15... b5 {[%clk 0:02:16.4]} 16. Bg5 {[%clk 0:02:20.9]} 16... a5
{[%clk 0:02:07.7]} 17. Bf4 {[%clk 0:02:05]} 17... Qe7 {[%clk 0:01:50.7]} 18.
Rae1 {[%clk 0:01:56.8]} 18... Nh7 {[%clk 0:01:47.8]} 19. Bg3 {[%clk 0:01:47.4]}
19... b4 {[%clk 0:01:43.7]} 20. Ne2 {[%clk 0:01:40.5]} 20... Nb5 {[%clk
0:01:38.5]} 21. f4 {[%clk 0:01:20.9]} 21... bxa3 {[%clk 0:01:27.5]} 22. bxa3
{[%clk 0:01:18.2]} 22... Rab8 {[%clk 0:01:20.9]} 23. a4 {[%clk 0:00:39.9]} 23...
Nd4 {[%clk 0:01:19.1]} 24. Nxd4 {[%clk 0:00:38.8]} 24... Bxd4+ {[%clk 0:01:20]}
25. Kh1 {[%clk 0:00:39.6]} 25... Rb2 {[%clk 0:01:19.7]} 26. Qc1 {[%clk
0:00:37.9]} 26... Reb8 {[%clk 0:01:15.2]} 27. Nf3 {[%clk 0:00:37.3]} 27... Bg7
{[%clk 0:01:12.6]} 28. e5 {[%clk 0:00:37.3]} 28... Bxa4 {[%clk 0:01:07.5]} 29.
e6 {[%clk 0:00:35.5]} 29... f5 {[%clk 0:01:05.4]} 30. Ng5 {[%clk 0:00:32]} 30...
Nxg5 {[%clk 0:01:03.4]} 31. fxg5 {[%clk 0:00:31.2]} 31... Bb5 {[%clk 0:01:01.7]}
32. Bxb5 {[%clk 0:00:27.8]} 32... R8xb5 {[%clk 0:01:01.6]} 33. Re3 {[%clk
0:00:24.9]} 33... Bd4 {[%clk 0:00:52.1]} 34. Bxd6 {[%clk 0:00:24]} 34... Bxe3
{[%clk 0:00:30.9]} 35. Qxe3 {[%clk 0:00:18.1]} 35... Qxd6 {[%clk 0:00:27.3]} 36.
e7 {[%clk 0:00:19]} 36... Rb8 {[%clk 0:00:27.3]} 37. e8=Q+ {[%clk 0:00:18.2]}
37... Rxe8 {[%clk 0:00:27.8]} 38. Qxe8+ {[%clk 0:00:18.9]} 38... Kg7 {[%clk
0:00:28.2]} 39. Re1 {[%clk 0:00:18.7]} 39... Rb7 {[%clk 0:00:27.2]} 40. Re6
{[%clk 0:00:18]} 40... Rb1+ {[%clk 0:00:23.9]} 41. Re1 {[%clk 0:00:15.9]} 41...
Rxe1+ {[%clk 0:00:24.4]} 42. Qxe1 {[%clk 0:00:15.1]} 42... Qxd5 {[%clk
0:00:24.6]} 43. Qe7+ {[%clk 0:00:15.2]} 43... Qf7 {[%clk 0:00:25]} 44. Qxc5
{[%clk 0:00:15.5]} 44... a4 {[%clk 0:00:15.7]} 45. Qa5 {[%clk 0:00:14.8]} 45...
Qd7 {[%clk 0:00:14.3]} 46. Qc3+ {[%clk 0:00:14]} 46... Kh7 {[%clk 0:00:11.5]}
47. Qa3 {[%clk 0:00:14.7]} 47... Qa7 {[%clk 0:00:10.4]} 48. Kh2 {[%clk
0:00:12.6]} 48... Kg7 {[%clk 0:00:10.7]} 49. Kh1 {[%clk 0:00:12.3]} 49... Kf7
{[%clk 0:00:11.1]} 50. Kh2 {[%clk 0:00:10.7]} 50... Ke6 {[%clk 0:00:11.6]} 51.
Qa2+ {[%clk 0:00:10.7]} 51... Ke5 {[%clk 0:00:11.3]} 52. Qe2+ {[%clk 0:00:11.2]}
52... Kd5 {[%clk 0:00:09.5]} 53. Qd3+ {[%clk 0:00:12.1]} 53... Qd4 {[%clk
0:00:08.8]} 54. Qb5+ {[%clk 0:00:12.5]} 54... Ke4 {[%clk 0:00:09]} 55. Qe2+
{[%clk 0:00:12.2]} 55... Qe3 {[%clk 0:00:08.5]} 56. Qc4+ {[%clk 0:00:12.8]}
56... Qd4 {[%clk 0:00:08.8]} 57. Qe2+ {[%clk 0:00:12.5]} 57... Kd5 {[%clk
0:00:09.4]} 58. Qb5+ {[%clk 0:00:12]} 58... Kd6 {[%clk 0:00:09.4]} 59. Qa6+
{[%clk 0:00:11.4]} 59... Ke5 {[%clk 0:00:09.6]} 60. Qb5+ {[%clk 0:00:11.4]}
60... Kf4 {[%clk 0:00:08]} 61. Qe2 {[%clk 0:00:08.4]} 61... a3 {[%clk
0:00:03.2]} 62. g4 {[%clk 0:00:08.5]} 62... hxg4 {[%clk 0:00:02.4]} 63. Qf1+
{[%clk 0:00:06.2]} 63... Ke4 {[%clk 0:00:02.5]} 64. Qe2+ {[%clk 0:00:05.7]}
64... Qe3 {[%clk 0:00:02.9]} 65. Qc4+ {[%clk 0:00:06.3]} 65... Kf3 {[%clk
0:00:03.5]} 66. Qd5+ {[%clk 0:00:02]} 66... Kf2 {[%clk 0:00:03.8]} 0-1

[Event "*** SCC Grand Prix: Titled Tuesday Blitz"]
[Site "Chess.com"]
[Date "2020.07.14"]
[Round "2"]
[White "c_r_e_e_p_e_r"]
[Black "QuintilianoR"]
[Result "0-1"]
[WhiteElo "2304"]
[BlackElo "2647"]
[TimeControl "180+1"]
[EndTime "10:19:39 PDT"]
[Termination "QuintilianoR won by checkmate"]

1. c4 {[%clk 0:03:00.9]} 1... e5 {[%clk 0:02:59.5]} 2. g3 {[%clk 0:03:01.2]}
2... Nf6 {[%clk 0:02:59.2]} 3. Bg2 {[%clk 0:03:01.4]} 3... d5 {[%clk 0:02:59.7]}
4. cxd5 {[%clk 0:03:01.2]} 4... Nxd5 {[%clk 0:03:00.6]} 5. Nc3 {[%clk
0:03:01.7]} 5... Nb6 {[%clk 0:03:00.8]} 6. Nf3 {[%clk 0:03:02.3]} 6... Nc6
{[%clk 0:03:00.9]} 7. O-O {[%clk 0:03:02.8]} 7... Be7 {[%clk 0:03:01.5]} 8. a3
{[%clk 0:03:03.1]} 8... O-O {[%clk 0:03:02.1]} 9. b4 {[%clk 0:03:03.5]} 9... Re8
{[%clk 0:03:02.7]} 10. d3 {[%clk 0:03:01.6]} 10... Bf8 {[%clk 0:03:02.2]} 11.
Bb2 {[%clk 0:03:00.4]} 11... f6 {[%clk 0:02:54.3]} 12. Rc1 {[%clk 0:02:52.8]}
12... Be6 {[%clk 0:02:53.9]} 13. Ne4 {[%clk 0:02:49.3]} 13... a6 {[%clk
0:02:31.6]} 14. Nc5 {[%clk 0:02:42.1]} 14... Bxc5 {[%clk 0:02:29.7]} 15. bxc5
{[%clk 0:02:38.8]} 15... Nd5 {[%clk 0:02:29.6]} 16. Qa4 {[%clk 0:02:37.9]} 16...
Qd7 {[%clk 0:02:27.4]} 17. Rfd1 {[%clk 0:02:30.6]} 17... Rad8 {[%clk 0:02:26.8]}
18. e4 {[%clk 0:02:18.2]} 18... Nde7 {[%clk 0:02:24.6]} 19. Qc2 {[%clk 0:01:48]}
19... Na5 {[%clk 0:02:09.7]} 20. Nd2 {[%clk 0:01:31.9]} 20... Qxd3 {[%clk
0:02:02.9]} 21. Qxd3 {[%clk 0:01:01.8]} 21... Rxd3 {[%clk 0:02:03.8]} 22. Bf1
{[%clk 0:01:02.2]} 22... Rdd8 {[%clk 0:01:54.9]} 23. Bc3 {[%clk 0:01:02]} 23...
Nac6 {[%clk 0:01:46.8]} 24. Bc4 {[%clk 0:00:47.1]} 24... Bxc4 {[%clk 0:01:43.5]}
25. Nxc4 {[%clk 0:00:48]} 25... Rxd1+ {[%clk 0:01:43.5]} 26. Rxd1 {[%clk
0:00:47.6]} 26... Rd8 {[%clk 0:01:42]} 27. Rb1 {[%clk 0:00:35.8]} 27... Rd3
{[%clk 0:01:39.8]} 28. Ba1 {[%clk 0:00:21.7]} 28... Kf8 {[%clk 0:00:57.3]} 29.
Kf1 {[%clk 0:00:20.8]} 29... Nd8 {[%clk 0:00:43.7]} 30. Ke2 {[%clk 0:00:20.8]}
30... Rd7 {[%clk 0:00:42.9]} 31. Ne3 {[%clk 0:00:20.3]} 31... g6 {[%clk
0:00:37.9]} 32. Bc3 {[%clk 0:00:20]} 32... c6 {[%clk 0:00:33.7]} 33. f3 {[%clk
0:00:19.7]} 33... Ne6 {[%clk 0:00:33.8]} 34. Bb4 {[%clk 0:00:13.8]} 34... Nd4+
{[%clk 0:00:33.6]} 35. Kf2 {[%clk 0:00:13.7]} 35... f5 {[%clk 0:00:30.7]} 36.
Rb2 {[%clk 0:00:13.2]} 36... Kf7 {[%clk 0:00:23.4]} 37. Nc4 {[%clk 0:00:11.7]}
37... Ke6 {[%clk 0:00:23.3]} 38. Nb6 {[%clk 0:00:11.2]} 38... Rd8 {[%clk
0:00:20.6]} 39. Nc4 {[%clk 0:00:10.8]} 39... Rf8 {[%clk 0:00:18.4]} 40. Ke3
{[%clk 0:00:10.2]} 40... Nb5 {[%clk 0:00:17.3]} 41. Rd2 {[%clk 0:00:09]} 41...
fxe4 {[%clk 0:00:16.8]} 42. fxe4 {[%clk 0:00:08]} 42... Rf1 {[%clk 0:00:16]} 43.
Nd6 {[%clk 0:00:08.4]} 43... Re1+ {[%clk 0:00:15.8]} 44. Kf2 {[%clk 0:00:08.9]}
44... Rb1 {[%clk 0:00:15.5]} 45. Nxb7 {[%clk 0:00:09.2]} 45... Nd4 {[%clk
0:00:15.6]} 46. Nd6 {[%clk 0:00:07.9]} 46... Rb3 {[%clk 0:00:14.1]} 47. Nc4
{[%clk 0:00:07.9]} 47... Rf3+ {[%clk 0:00:14.1]} 48. Kg2 {[%clk 0:00:08]} 48...
Rb3 {[%clk 0:00:15]} 49. Na5 {[%clk 0:00:08.3]} 49... Re3 {[%clk 0:00:15]} 50.
Nb7 {[%clk 0:00:08.2]} 50... Rxe4 {[%clk 0:00:15.2]} 51. Nd6 {[%clk 0:00:08.4]}
51... Re2+ {[%clk 0:00:15]} 52. Rxe2 {[%clk 0:00:08.4]} 52... Nxe2 {[%clk
0:00:15.9]} 53. Nc4 {[%clk 0:00:08.9]} 53... Nd4 {[%clk 0:00:16.3]} 54. Kf2
{[%clk 0:00:09]} 54... Nd5 {[%clk 0:00:16.8]} 55. Ba5 {[%clk 0:00:09.1]} 55...
Nb3 {[%clk 0:00:16.6]} 56. Bb6 {[%clk 0:00:08.3]} 56... Nd4 {[%clk 0:00:16.7]}
57. Bc7 {[%clk 0:00:08.2]} 57... Nxc7 {[%clk 0:00:15.5]} 58. Nd6 {[%clk
0:00:08.8]} 58... Ncb5 {[%clk 0:00:15.4]} 59. Nb7 {[%clk 0:00:08.7]} 59... Nxa3
{[%clk 0:00:14.5]} 60. Na5 {[%clk 0:00:08.2]} 60... Kd5 {[%clk 0:00:14.7]} 61.
Ke3 {[%clk 0:00:08.4]} 61... Ndc2+ {[%clk 0:00:14.4]} 62. Kd2 {[%clk 0:00:08]}
62... Nb4 {[%clk 0:00:15.3]} 63. Nb3 {[%clk 0:00:08.1]} 63... Nb5 {[%clk
0:00:14.1]} 64. Ke3 {[%clk 0:00:07.7]} 64... a5 {[%clk 0:00:14.5]} 65. Nxa5
{[%clk 0:00:07.5]} 65... Kxc5 {[%clk 0:00:15]} 66. Nb7+ {[%clk 0:00:08.3]} 66...
Kd5 {[%clk 0:00:15.3]} 67. Nd8 {[%clk 0:00:09.2]} 67... c5 {[%clk 0:00:15.8]}
68. h4 {[%clk 0:00:10.1]} 68... Nc6 {[%clk 0:00:16.2]} 69. Nb7 {[%clk
0:00:10.8]} 69... Nbd4 {[%clk 0:00:16.1]} 70. Kd3 {[%clk 0:00:11]} 70... c4+
{[%clk 0:00:17]} 71. Kd2 {[%clk 0:00:11.1]} 71... Nb5 {[%clk 0:00:17.6]} 72. h5
{[%clk 0:00:10.2]} 72... c3+ {[%clk 0:00:17.4]} 73. Kc2 {[%clk 0:00:10.4]} 73...
gxh5 {[%clk 0:00:18]} 74. Kc1 {[%clk 0:00:09.8]} 74... Ncd4 {[%clk 0:00:18.2]}
75. Kd1 {[%clk 0:00:10]} 75... c2+ {[%clk 0:00:18.5]} 76. Kd2 {[%clk 0:00:10.1]}
76... Nc3 {[%clk 0:00:19.4]} 77. Nc5 {[%clk 0:00:08.6]} 77... Na2 {[%clk
0:00:19.5]} 78. Nd3 {[%clk 0:00:07.8]} 78... e4 {[%clk 0:00:20]} 79. Nc1 {[%clk
0:00:08.7]} 79... Nxc1 {[%clk 0:00:19.8]} 80. Kxc1 {[%clk 0:00:09.6]} 80... e3
{[%clk 0:00:20.5]} 81. g4 {[%clk 0:00:09.8]} 81... e2 {[%clk 0:00:21.4]} 82. g5
{[%clk 0:00:09.6]} 82... e1=Q+ {[%clk 0:00:21.1]} 83. Kb2 {[%clk 0:00:10.4]}
83... Qb1+ {[%clk 0:00:22]} 84. Ka3 {[%clk 0:00:10.7]} 84... c1=Q+ {[%clk
0:00:22.1]} 85. Ka4 {[%clk 0:00:11.6]} 85... Qc4+ {[%clk 0:00:22.2]} 86. Ka5
{[%clk 0:00:12.5]} 86... Qbb5# {[%clk 0:00:22.7]} 0-1

[Event "*** SCC Grand Prix: Titled Tuesday Blitz"]
[Site "Chess.com"]
[Date "2020.07.14"]
[Round "2"]
[White "Sankalp_Gupta2003"]
[Black "ferdipy"]
[Result "0-1"]
[WhiteElo "2764"]
[BlackElo "2335"]
[TimeControl "180+1"]
[EndTime "10:19:47 PDT"]
[Termination "ferdipy won on time"]

1. e4 {[%clk 0:03:00.9]} 1... e6 {[%clk 0:02:59.5]} 2. d4 {[%clk 0:03:00]} 2...
d5 {[%clk 0:02:59.5]} 3. Nd2 {[%clk 0:03:00]} 3... Be7 {[%clk 0:02:58.3]} 4. Bd3
{[%clk 0:02:58.7]} 4... Nf6 {[%clk 0:02:57.3]} 5. e5 {[%clk 0:02:58.7]} 5...
Nfd7 {[%clk 0:02:57.4]} 6. Ne2 {[%clk 0:02:59.2]} 6... c5 {[%clk 0:02:57.8]} 7.
c3 {[%clk 0:02:59.8]} 7... Nc6 {[%clk 0:02:58.7]} 8. O-O {[%clk 0:03:00.2]} 8...
cxd4 {[%clk 0:02:59.6]} 9. cxd4 {[%clk 0:03:01]} 9... f6 {[%clk 0:03:00.5]} 10.
Nf4 {[%clk 0:02:51.4]} 10... Nxd4 {[%clk 0:02:45.8]} 11. Qh5+ {[%clk 0:02:48.8]}
11... Kf8 {[%clk 0:02:44.5]} 12. Nb3 {[%clk 0:02:40.4]} 12... Qe8 {[%clk
0:02:19]} 13. Bg6 {[%clk 0:02:08.9]} 13... Ne2+ {[%clk 0:02:06]} 14. Qxe2 {[%clk
0:02:02.4]} 14... hxg6 {[%clk 0:02:05.7]} 15. Nxe6+ {[%clk 0:02:00.9]} 15... Kg8
{[%clk 0:02:04.4]} 16. exf6 {[%clk 0:02:00.4]} 16... Nxf6 {[%clk 0:02:02.5]} 17.
Nbd4 {[%clk 0:02:00.1]} 17... Ne4 {[%clk 0:01:53.5]} 18. f3 {[%clk 0:01:48.9]}
18... Bxe6 {[%clk 0:01:45.8]} 19. Nxe6 {[%clk 0:01:35.6]} 19... Nc5 {[%clk
0:01:46.2]} 20. Nd4 {[%clk 0:01:31.4]} 20... Bf6 {[%clk 0:01:43]} 21. Qxe8+
{[%clk 0:01:05.5]} 21... Rxe8 {[%clk 0:01:43.9]} 22. Rd1 {[%clk 0:00:55.3]}
22... Rh4 {[%clk 0:01:36.9]} 23. Nb3 {[%clk 0:00:47.3]} 23... b6 {[%clk
0:01:00.6]} 24. h3 {[%clk 0:00:27.4]} 24... Rd8 {[%clk 0:00:47.7]} 25. Kf2
{[%clk 0:00:19.9]} 25... Rc4 {[%clk 0:00:44]} 26. Nxc5 {[%clk 0:00:18.4]} 26...
bxc5 {[%clk 0:00:40.1]} 27. Rb1 {[%clk 0:00:18.2]} 27... Rc2+ {[%clk 0:00:31.1]}
28. Rd2 {[%clk 0:00:18.3]} 28... Bd4+ {[%clk 0:00:28.5]} 29. Kf1 {[%clk
0:00:12.5]} 29... Rxd2 {[%clk 0:00:25.8]} 30. Bxd2 {[%clk 0:00:13.4]} 30... Rb8
{[%clk 0:00:26.3]} 31. b3 {[%clk 0:00:13.7]} 31... a5 {[%clk 0:00:21.8]} 32. Bf4
{[%clk 0:00:13.5]} 32... Rc8 {[%clk 0:00:19.2]} 33. Ke2 {[%clk 0:00:12.7]} 33...
Ra8 {[%clk 0:00:18.3]} 34. Rd1 {[%clk 0:00:10.5]} 34... Kf7 {[%clk 0:00:18.5]}
35. Be3 {[%clk 0:00:09.9]} 35... Bxe3 {[%clk 0:00:17.9]} 36. Kxe3 {[%clk
0:00:10.8]} 36... Ke6 {[%clk 0:00:18.7]} 37. Kd3 {[%clk 0:00:10.4]} 37... a4
{[%clk 0:00:18.8]} 38. Kc3 {[%clk 0:00:10.4]} 38... axb3 {[%clk 0:00:19]} 39.
Kxb3 {[%clk 0:00:08.4]} 39... Rb8+ {[%clk 0:00:18.3]} 40. Kc3 {[%clk 0:00:08.9]}
40... Kd6 {[%clk 0:00:16.1]} 41. f4 {[%clk 0:00:07.9]} 41... d4+ {[%clk
0:00:16.4]} 42. Kc2 {[%clk 0:00:06.7]} 42... Kd5 {[%clk 0:00:14.9]} 43. Re1
{[%clk 0:00:06]} 43... Ra8 {[%clk 0:00:11.3]} 44. Re5+ {[%clk 0:00:05.5]} 44...
Kd6 {[%clk 0:00:11.7]} 45. Kb2 {[%clk 0:00:05.5]} 45... c4 {[%clk 0:00:11]} 46.
Rg5 {[%clk 0:00:04.9]} 46... c3+ {[%clk 0:00:10.1]} 47. Kb3 {[%clk 0:00:04.4]}
47... Rb8+ {[%clk 0:00:10.1]} 48. Kc2 {[%clk 0:00:04.3]} 48... Rb2+ {[%clk
0:00:10.7]} 49. Kc1 {[%clk 0:00:04.7]} 49... Rxa2 {[%clk 0:00:10.8]} 50. Rxg6+
{[%clk 0:00:05]} 50... Kd5 {[%clk 0:00:11.4]} 51. Rxg7 {[%clk 0:00:05.2]} 51...
d3 {[%clk 0:00:11.1]} 52. Rd7+ {[%clk 0:00:05.7]} 52... Ke4 {[%clk 0:00:11.1]}
53. Re7+ {[%clk 0:00:06.2]} 53... Kxf4 {[%clk 0:00:11.4]} 54. Rf7+ {[%clk
0:00:06.5]} 54... Kg3 {[%clk 0:00:11.6]} 55. Rg7+ {[%clk 0:00:06.7]} 55... Kf2
{[%clk 0:00:11.2]} 56. Rf7+ {[%clk 0:00:07.3]} 56... Kxg2 {[%clk 0:00:11.7]} 57.
Rg7+ {[%clk 0:00:07.6]} 57... Kxh3 {[%clk 0:00:11.4]} 58. Rh7+ {[%clk 0:00:08]}
58... Kg2 {[%clk 0:00:11]} 59. Rg7+ {[%clk 0:00:08.9]} 59... Kf3 {[%clk
0:00:11.6]} 60. Rf7+ {[%clk 0:00:09.7]} 60... Ke4 {[%clk 0:00:12.2]} 61. Re7+
{[%clk 0:00:10.1]} 61... Kd5 {[%clk 0:00:12.4]} 62. Rd7+ {[%clk 0:00:10.6]}
62... Kc4 {[%clk 0:00:12.5]} 63. Rc7+ {[%clk 0:00:11]} 63... Kb4 {[%clk
0:00:09.9]} 64. Rb7+ {[%clk 0:00:11.1]} 64... Kc5 {[%clk 0:00:08.8]} 65. Rc7+
{[%clk 0:00:11.5]} 65... Kd5 {[%clk 0:00:07.5]} 66. Rxc3 {[%clk 0:00:10.4]}
66... Kd4 {[%clk 0:00:07.1]} 67. Rc7 {[%clk 0:00:07.4]} 67... Rh2 {[%clk
0:00:04.1]} 68. Kd1 {[%clk 0:00:06]} 68... Ke3 {[%clk 0:00:02.8]} 69. Re7+
{[%clk 0:00:04.6]} 69... Kd4 {[%clk 0:00:03.3]} 70. Rd7+ {[%clk 0:00:03.4]}
70... Kc3 {[%clk 0:00:02.2]} 71. Rc7+ {[%clk 0:00:02.4]} 71... Kd4 {[%clk
0:00:03.1]} 72. Rd7+ {[%clk 0:00:02]} 72... Ke4 {[%clk 0:00:04]} 0-1